fUST/lending_fUST_20240717
["ID","MTS","AMOUNT","RATE_DAILY","PERIOD"]
[332445742,1721189442336,-503.4222804,0.00021917,2]
[332445744,1721189442345,-461.80070194,0.00021917,2]
[332445746,1721189442354,-500.0,0.00021917,2]
[332445748,1721189442364,-500.0,0.00021917,2]
[332445750,1721189442374,-500.0,0.00021917,2]
[332445752,1721189442383,-500.0,0.00021917,2]
[332445754,1721189442393,-500.0,0.00021917,2]
[332445756,1721189442402,-511.36376727,0.00021917,2]
[332445758,1721189442412,-469.03692436,0.00021917,2]
[332445760,1721189442423,-500.0,0.00021917,2]
[332445762,1721189442432,-500.25424201,0.00021917,2]
[332445764,1721189442441,-500.0,0.00021917,2]
[332445766,1721189442451,-500.0,0.00021917,2]
[332445768,1721189442460,-500.0,0.00021917,2]
[332445770,1721189442470,-501.63759292,0.00021917,2]
[332445772,1721189442479,-500.0,0.00021917,2]
[332445774,1721189442489,-500.79673516,0.00021917,2]
[332445776,1721189442498,-500.0,0.00021917,2]
[332445778,1721189442507,-500.0,0.00021917,2]
[332445780,1721189442516,-500.0,0.00021917,2]
[332445782,1721189442525,-500.0,0.00021917,2]
[332445784,1721189442535,-175.7424169,0.00021917,2]
[332445786,1721189442545,-500.0,0.00021917,2]
[332445788,1721189442555,-500.0,0.00021917,2]
[332445790,1721189442564,-500.0,0.00021917,2]
[332445792,1721189442573,-500.0,0.00021917,2]
[332445794,1721189442582,-1500.0,0.00021917,2]
[332445796,1721189442591,-500.0,0.00021917,2]
[332445798,1721189442601,-500.0,0.00021917,2]
[332445800,1721189442610,-500.0,0.00021917,2]
[332445802,1721189442620,-500.0,0.00021917,2]
[332445804,1721189442629,-500.0,0.00021917,2]
[332445806,1721189442639,-500.0,0.00021917,2]
[332445808,1721189442649,-500.0,0.00021917,2]
[332445810,1721189442659,-500.0,0.00021917,2]
[332445812,1721189442668,-500.0,0.00021917,2]
[332445814,1721189442679,-500.0,0.00021917,2]
[332445817,1721189442689,-500.0,0.00021917,2]
[332445819,1721189442699,-500.0,0.00021917,2]
[332445821,1721189442708,-500.0,0.00021917,2]
[332445823,1721189442718,-500.0,0.00021917,2]
[332445825,1721189442727,-500.0,0.00021917,2]
[332445827,1721189442737,-500.0,0.00021917,2]
[332445829,1721189442746,-500.0,0.00021917,2]
[332445831,1721189442755,-500.0,0.00021917,2]
[332445833,1721189442765,-500.0,0.00021917,2]
[332445835,1721189442774,-500.0,0.00021917,2]
[332445837,1721189442783,-500.0,0.00021917,2]
[332445839,1721189442792,-500.0,0.00021917,2]
[332445841,1721189442801,-500.0,0.00021917,2]
[332445842,1721189442811,-500.0,0.00021917,2]
[332445844,1721189442820,-500.0,0.00021917,2]
[332445846,1721189442829,-500.0,0.00021917,2]
[332445848,1721189442839,-500.0,0.00021917,2]
[332445850,1721189442850,-500.0,0.00021917,2]
[332445852,1721189442859,-546.90778361,0.00021917,2]
[332445854,1721189442868,-500.0,0.00021917,2]
[332445856,1721189442878,-500.0,0.00021917,2]
[332445858,1721189442888,-154.82490109,0.00021917,2]
[332445860,1721189442899,-500.0,0.00021917,2]
[332445862,1721189442908,-500.0,0.00021917,2]
[332445864,1721189442920,-534.62792197,0.00021917,2]
[332445867,1721189442929,-500.0,0.00021917,2]
[332445869,1721189442939,-228.8614272,0.00021917,2]
[332445871,1721189442948,-500.0,0.00021917,2]
[332445873,1721189442958,-500.0,0.00021917,2]
[332445875,1721189442969,-500.0,0.00021917,2]
[332445877,1721189442980,-500.0,0.00021917,2]
[332445879,1721189442991,-500.0,0.00021917,2]
[332445881,1721189443001,-500.0,0.00021917,2]
[332445883,1721189443010,-500.0,0.00021917,2]
[332445885,1721189443021,-500.0,0.00021917,2]
[332445887,1721189443031,-457.56903871,0.00021917,2]
[332445889,1721189443042,-504.11650853,0.00021917,2]
[332445891,1721189443052,-500.0,0.00021917,2]
[332445893,1721189443062,-500.0,0.00021917,2]
[332445895,1721189443072,-505.47407513,0.00021917,2]
[332445898,1721189443083,-500.0,0.00021917,2]
[332445900,1721189443094,-500.0,0.00021917,2]
[332445903,1721189443105,-500.0,0.00021917,2]
[332445905,1721189443115,-500.0,0.00021917,2]
[332445907,1721189443125,-500.0,0.00021917,2]
[332445909,1721189443136,-500.0,0.00021917,2]
[332445911,1721189443146,-500.0,0.00021917,2]
[332445913,1721189443155,-500.0,0.00021917,2]
[332445915,1721189443165,-500.0,0.00021917,2]
[332445917,1721189443176,-500.0,0.00021917,2]
[332445919,1721189443186,-500.0,0.00021917,2]
[332445922,1721189443196,-500.0,0.00021917,2]
[332445924,1721189443206,-500.0,0.00021917,2]
[332445927,1721189443217,-500.0,0.00021917,2]
[332445930,1721189443226,-500.0,0.00021917,2]
[332445933,1721189443235,-500.0,0.00021917,2]
[332445936,1721189443245,-508.86161878,0.00021917,2]
[332445939,1721189443254,-567.8,0.00021917,2]
[332445943,1721189443264,-500.0,0.00021917,2]
[332445948,1721189443274,-500.0,0.00021917,2]
[332445953,1721189443283,-500.0,0.00021917,2]
[332445958,1721189443292,-500.0,0.00021917,2]
[332445963,1721189443302,-500.0,0.00021917,2]
[332445968,1721189443311,-500.0,0.00021917,2]
[332445973,1721189443320,-500.0,0.00021917,2]
[332445978,1721189443330,-500.0,0.00021917,2]
[332445983,1721189443340,-500.0,0.00021917,2]
[332445987,1721189443351,-500.0,0.00021917,2]
[332445990,1721189443361,-500.0,0.00021917,2]
[332445993,1721189443370,-500.0,0.00021917,2]
[332445995,1721189443380,-500.0,0.00021917,2]
[332445997,1721189443390,-500.0,0.00021917,2]
[332445999,1721189443400,-500.0,0.00021917,2]
[332446001,1721189443410,-500.0,0.00021917,2]
[332446003,1721189443421,-500.0,0.00021917,2]
[332446006,1721189443431,-500.0,0.00021917,2]
[332446008,1721189443442,-500.0,0.00021917,2]
[332446010,1721189443452,-500.0,0.00021917,2]
[332446012,1721189443461,-500.0,0.00021917,2]
[332446014,1721189443475,-500.0,0.00021917,2]
[332446016,1721189443486,-200.0,0.00021917,2]
[332446018,1721189443495,-500.0,0.00021917,2]
[332446021,1721189443506,-500.0,0.00021917,2]
[332446023,1721189443515,-500.0,0.00021917,2]
[332446025,1721189443525,-500.0,0.00021917,2]
[332446042,1721189443684,-500.0,0.00021917,2]
[332446045,1721189443696,-309.33307822,0.00021917,2]
[332446047,1721189443706,-500.0,0.00021917,2]
[332446049,1721189443718,-500.0,0.00021917,2]
[332446051,1721189443729,-500.0,0.00021917,2]
[332446053,1721189443739,-500.0,0.00021917,2]
[332446055,1721189443750,-500.0,0.00021917,2]
[332446057,1721189443760,-506.03667196,0.00021917,2]
[332446059,1721189443770,-596.95998258,0.00021917,2]
[332446061,1721189443779,-503.4900608,0.00021917,2]
[332446064,1721189443789,-53.91042354,0.00021917,2]
[332446101,1721189444121,-182.86241318,0.0001818,2]
[332446104,1721189444133,-379.43096743,0.00021917,2]
[332446106,1721189444146,-75.42807557,0.00021917,2]
[332446108,1721189444156,-380.1014965,0.00021917,2]
[332446634,1721189565984,155.20091706,0.00014999,2]
[332446635,1721189600409,244.59111106,0.00015,2]
[332446636,1721189625707,856.6303011,0.00014999,2]
[332446640,1721190431522,9778.82916565,0.00014998,2]
[332446645,1721190531190,12929.30552394,0.0001,2]
[332446646,1721190543302,154.72922386,0.00014999,2]
[332446651,1721190558180,257.11466654,0.00014999,2]
[332446683,1721190631835,-497.89828789,0.000189,2]
[332446684,1721190631847,-186.00441223,0.000191,2]
[332446685,1721190631857,-164.850227,0.00019178,2]
[332446686,1721190631867,-357.4365844,0.00019487,2]
[332446687,1721190631877,-127.1250438,0.00019976,2]
[332446697,1721190637766,-230.3115406,0.00019976,2]
[332446699,1721190637776,-300.0,0.00019999,2]
[332446701,1721190637785,-293.89533444,0.0002,2]
[332446703,1721190637795,-43785.8033263,0.0002,2]
[332446705,1721190637804,-154.72922386,0.0002,2]
[332446707,1721190637813,-154.88949836,0.0002,2]
[332446709,1721190637822,-154.72922386,0.0002,2]
[332446711,1721190637832,-154.72922386,0.0002,2]
[332446713,1721190637841,-174.15623839,0.0002,2]
[332446715,1721190637850,-1168.32811277,0.0002,2]
[332446717,1721190637862,-435.0,0.0002,2]
[332446719,1721190637871,-154.72922386,0.0002,2]
[332446721,1721190637880,-158.8017905,0.0002,2]
[332446723,1721190637890,-215.01715484,0.0002,2]
[332446725,1721190637899,-154.72922386,0.0002,2]
[332446727,1721190637909,-151.27311453,0.0002,2]
[332446728,1721190637918,-357.4365844,0.00020138,2]
[332446730,1721190637928,-2496.52126927,0.00020144,2]
[332446731,1721190637937,-620.00030804,0.00020244,2]
[332446733,1721190637947,-1123.12391054,0.00020244,2]
[332446735,1721190637957,-357.4365844,0.00020436,2]
[332446737,1721190637966,-171.9634148,0.00020496,2]
[332446738,1721190637975,-4953.84625735,0.00020501,2]
[332446740,1721190637985,-4953.84625735,0.00020559,2]
[332446742,1721190637995,-357.4365844,0.000206,2]
[332446744,1721190638006,-4237.94682042,0.0002066,7]
[332446746,1721190638017,-378.5,0.00020812,2]
[332446747,1721190638027,-357.4365844,0.00020903,2]
[332446749,1721190638037,-49127.7812711,0.0002098,3]
[332446750,1721190638048,-500.0,0.00020989,2]
[332446751,1721190638057,-500.0,0.00020989,2]
[332446753,1721190638066,-161.18940812,0.00020989,2]
[332446754,1721190638076,-500.0,0.00020989,2]
[332446755,1721190638086,-325.54790105,0.00020989,2]
[332446756,1721190638097,-176.3622451,0.00020989,2]
[332446757,1721190638110,-500.0,0.00020989,2]
[332446758,1721190638121,-500.0,0.00020989,2]
[332446759,1721190638130,-500.0,0.00020989,2]
[332446760,1721190638140,-500.0,0.00020989,2]
[332446761,1721190638150,-519.06024172,0.00020989,2]
[332446762,1721190638159,-500.0,0.00020989,2]
[332446763,1721190638170,-500.0,0.00020989,2]
[332446764,1721190638180,-499.85170955,0.00020989,2]
[332446765,1721190638191,-500.0,0.00020989,2]
[332446766,1721190638200,-500.0,0.00020989,2]
[332446767,1721190638211,-500.0,0.00020989,2]
[332446768,1721190638220,-500.0,0.00020989,2]
[332446769,1721190638229,-500.0,0.00020989,2]
[332446770,1721190638238,-500.0,0.00020989,2]
[332446771,1721190638248,-67369.30438211,0.0002099,5]
[332446772,1721190638257,-26583.44906496,0.0002099,5]
[332446773,1721190638271,-114022.05044224,0.0002099,2]
[332446774,1721190638280,-299.61744642,0.00021,2]
[332446775,1721190638291,-295.08989123,0.00021,2]
[332446776,1721190638302,-285.0,0.00021,2]
[332446777,1721190638313,-4953.84625735,0.00021059,2]
[332446778,1721190638324,-641.361833,0.00021096,2]
[332446779,1721190638335,-378.5,0.00021238,2]
[332446780,1721190638349,-620.0000154,0.00021256,2]
[332446781,1721190638361,-645.15619553,0.00021256,2]
[332446782,1721190638371,-357.4365844,0.00021269,2]
[332446783,1721190638384,-4953.84625735,0.00021293,2]
[332446784,1721190638393,-289.18175283,0.00021374,2]
[332446785,1721190638405,-357.4365844,0.00021384,2]
[332446786,1721190638415,-4953.84625735,0.00021436,2]
[332446787,1721190638427,-500.0,0.00021465,7]
[332446788,1721190638436,-500.0,0.00021465,7]
[332446789,1721190638446,-500.0,0.00021465,7]
[332446790,1721190638456,-500.0,0.00021465,7]
[332446791,1721190638466,-500.0,0.00021465,7]
[332446792,1721190638477,-500.0,0.00021465,7]
[332446793,1721190638488,-500.0,0.00021465,7]
[332446794,1721190638498,-597.21,0.00021465,7]
[332446795,1721190638507,-378.5,0.00021664,2]
[332446796,1721190638517,-357.4365852,0.00021704,2]
[332446797,1721190638526,-10141.11675301,0.00021798,2]
[332446798,1721190638535,-3000.0,0.000218,2]
[332446799,1721190638544,-49127.7812711,0.00021807,3]
[332446800,1721190638554,-3000.0,0.0002181,2]
[332446801,1721190638563,-88888.0,0.00021817,3]
[332446802,1721190638572,-3000.0,0.0002182,2]
[332446803,1721190638582,-3000.0,0.0002183,2]
[332446804,1721190638591,-3000.0,0.0002184,2]
[332446805,1721190638600,-3000.0,0.0002185,2]
[332446806,1721190638613,-153077.88882318,0.0002185,2]
[332446807,1721190638622,-3000.0,0.0002186,2]
[332446808,1721190638631,-153.249302,0.0002186,2]
[332446809,1721190638641,-3000.0,0.0002187,2]
[332446810,1721190638650,-3000.0,0.0002188,2]
[332446811,1721190638659,-151.0,0.0002188,2]
[332446812,1721190638668,-173.526544,0.0002188,2]
[332446813,1721190638678,-173.526544,0.0002188,2]
[332446814,1721190638688,-151.942655,0.0002188,2]
[332446815,1721190638697,-422.374112,0.0002188,2]
[332446816,1721190638707,-422.374112,0.0002188,2]
[332446817,1721190638716,-242.305504,0.0002188,2]
[332446818,1721190638725,-242.305504,0.0002188,2]
[332446819,1721190638734,-151.0,0.0002188,2]
[332446820,1721190638743,-3000.0,0.0002189,2]
[332446821,1721190638752,-24563.8906356,0.00021896,3]
[332446822,1721190638762,-150.112233,0.000219,5]
[332446823,1721190638771,-150.112233,0.000219,5]
[332446824,1721190638780,-150.112233,0.000219,4]
[332446825,1721190638789,-150.112233,0.000219,4]
[332446826,1721190638799,-150.112233,0.000219,5]
[332446827,1721190638808,-150.112233,0.000219,3]
[332446828,1721190638817,-150.112233,0.000219,4]
[332446829,1721190638827,-150.112233,0.000219,2]
[332446830,1721190638836,-150.112233,0.000219,4]
[332446831,1721190638847,-150.112233,0.000219,2]
[332446832,1721190638860,-3000.0,0.000219,2]
[332446833,1721190638869,-150.112233,0.000219,3]
[332446834,1721190638879,-150.112233,0.000219,3]
[332446835,1721190638888,-150.112233,0.000219,3]
[332446836,1721190638898,-150.112233,0.000219,5]
[332446837,1721190638908,-150.112233,0.000219,5]
[332446838,1721190638917,-150.112233,0.000219,4]
[332446839,1721190638926,-150.112233,0.000219,3]
[332446840,1721190638936,-150.112233,0.000219,4]
[332446841,1721190638945,-150.112233,0.000219,4]
[332446842,1721190638954,-150.112233,0.000219,2]
[332446843,1721190638963,-4953.84625736,0.00021901,2]
[332446844,1721190638973,-24563.8906356,0.00021907,3]
[332446845,1721190638982,-98255.5625422,0.00021907,3]
[332446846,1721190638991,-3000.0,0.0002191,2]
[332446847,1721190639000,-1067.07630449,0.00021917,2]
[332446848,1721190639009,-265.28593744,0.00021917,2]
[332446849,1721190639019,-500.0,0.00021917,2]
[332446850,1721190639028,-500.0,0.00021917,2]
[332446851,1721190639037,-500.0,0.00021917,2]
[332446852,1721190639046,-500.0,0.00021917,2]
[332446853,1721190639055,-500.0,0.00021917,2]
[332446854,1721190639064,-500.0,0.00021917,2]
[332446855,1721190639073,-500.0,0.00021917,2]
[332446856,1721190639082,-500.0,0.00021917,2]
[332446857,1721190639091,-500.0,0.00021917,2]
[332446858,1721190639100,-500.0,0.00021917,2]
[332446859,1721190639111,-500.0,0.00021917,2]
[332446860,1721190639121,-500.0,0.00021917,2]
[332446861,1721190639130,-503.94799148,0.00021917,2]
[332446862,1721190639139,-506.59253411,0.00021917,2]
[332446863,1721190639149,-500.0,0.00021917,2]
[332446864,1721190639158,-500.0,0.00021917,2]
[332446865,1721190639167,-500.0,0.00021917,2]
[332446866,1721190639176,-503.33383982,0.00021917,2]
[332446867,1721190639186,-500.0,0.00021917,2]
[332446868,1721190639195,-500.0,0.00021917,2]
[332446869,1721190639204,-500.0,0.00021917,2]
[332446870,1721190639213,-500.0,0.00021917,2]
[332446871,1721190639224,-500.0,0.00021917,2]
[332446872,1721190639233,-500.0,0.00021917,2]
[332446873,1721190639242,-500.0,0.00021917,2]
[332446875,1721190639251,-500.0,0.00021917,2]
[332446876,1721190639261,-500.0,0.00021917,2]
[332446877,1721190639271,-500.0,0.00021917,2]
[332446878,1721190639282,-500.0,0.00021917,2]
[332446879,1721190639292,-503.57964101,0.00021917,2]
[332446880,1721190639301,-500.0,0.00021917,2]
[332446881,1721190639312,-364.16768691,0.00021917,2]
[332446882,1721190639321,-500.0,0.00021917,2]
[332446883,1721190639331,-531.02602835,0.00021917,2]
[332446884,1721190639340,-500.0,0.00021917,2]
[332446885,1721190639353,-500.0,0.00021917,2]
[332446886,1721190639364,-500.0,0.00021917,2]
[332446888,1721190639373,-500.0,0.00021917,2]
[332446889,1721190639382,-500.0,0.00021917,2]
[332446890,1721190639392,-500.0,0.00021917,2]
[332446891,1721190639401,-514.61820134,0.00021917,2]
[332446892,1721190639410,-500.0,0.00021917,2]
[332446893,1721190639420,-500.0,0.00021917,2]
[332446895,1721190639430,-500.0,0.00021917,2]
[332446896,1721190639440,-500.0,0.00021917,2]
[332446897,1721190639449,-500.0,0.00021917,2]
[332446899,1721190639459,-500.0,0.00021917,2]
[332446900,1721190639468,-500.0,0.00021917,2]
[332446901,1721190639478,-500.0,0.00021917,2]
[332446903,1721190639487,-500.0,0.00021917,2]
[332446904,1721190639496,-500.0,0.00021917,2]
[332446906,1721190639505,-500.0,0.00021917,2]
[332446908,1721190639515,-508.24835316,0.00021917,2]
[332446910,1721190639524,-500.0,0.00021917,2]
[332446911,1721190639534,-500.0,0.00021917,2]
[332446912,1721190639543,-507.53053524,0.00021917,2]
[332446914,1721190639552,-500.0,0.00021917,2]
[332446915,1721190639562,-500.0,0.00021917,2]
[332446916,1721190639571,-550.19818618,0.00021917,2]
[332446917,1721190639581,-500.0,0.00021917,2]
[332446918,1721190639590,-500.0,0.00021917,2]
[332446919,1721190639600,-498.1774399,0.00021917,2]
[332446921,1721190639613,-599.94784458,0.00021917,2]
[332446922,1721190639622,-500.0,0.00021917,2]
[332446923,1721190639631,-506.87875233,0.00021917,2]
[332446924,1721190639640,-615.66,0.00021917,2]
[332446925,1721190639649,-615.66,0.00021917,2]
[332446926,1721190639659,-500.0,0.00021917,2]
[332446928,1721190639668,-615.66,0.00021917,2]
[332446930,1721190639679,-500.0,0.00021917,2]
[332446932,1721190639688,-615.66,0.00021917,2]
[332446934,1721190639698,-615.66,0.00021917,2]
[332446935,1721190639707,-615.66,0.00021917,2]
[332446937,1721190639717,-615.66,0.00021917,2]
[332446939,1721190639726,-615.66,0.00021917,2]
[332446940,1721190639736,-615.66,0.00021917,2]
[332446942,1721190639745,-500.0,0.00021917,2]
[332446943,1721190639754,-615.66,0.00021917,2]
[332446944,1721190639764,-615.66,0.00021917,2]
[332446945,1721190639774,-500.0,0.00021917,2]
[332446946,1721190639783,-500.0,0.00021917,2]
[332446947,1721190639793,-500.0,0.00021917,2]
[332446948,1721190639802,-512.81017763,0.00021917,2]
[332446949,1721190639812,-500.0,0.00021917,2]
[332446950,1721190639823,-500.0,0.00021917,2]
[332446951,1721190639834,-500.0,0.00021917,2]
[332446952,1721190639845,-500.0,0.00021917,2]
[332446953,1721190639857,-510.99613724,0.00021917,2]
[332446954,1721190639866,-500.0,0.00021917,2]
[332446955,1721190639875,-500.0,0.00021917,2]
[332446956,1721190639884,-500.0,0.00021917,2]
[332446957,1721190639894,-500.0,0.00021917,2]
[332446958,1721190639905,-531.05614074,0.00021917,2]
[332446959,1721190639915,-500.0,0.00021917,2]
[332446960,1721190639928,-500.0,0.00021917,2]
[332446961,1721190639937,-500.0,0.00021917,2]
[332446962,1721190639946,-500.0,0.00021917,2]
[332446963,1721190639955,-573.70350693,0.00021917,2]
[332446964,1721190639965,-500.0,0.00021917,2]
[332446965,1721190639974,-500.0,0.00021917,2]
[332446966,1721190639983,-500.0,0.00021917,2]
[332446967,1721190639993,-500.0,0.00021917,2]
[332446968,1721190640002,-500.0,0.00021917,2]
[332446969,1721190640011,-500.0,0.00021917,2]
[332446970,1721190640020,-500.0,0.00021917,2]
[332446971,1721190640029,-500.0,0.00021917,2]
[332446972,1721190640039,-500.0,0.00021917,2]
[332446973,1721190640049,-511.43279085,0.00021917,2]
[332446974,1721190640058,-500.0,0.00021917,2]
[332446975,1721190640068,-500.0,0.00021917,2]
[332446976,1721190640077,-500.0,0.00021917,2]
[332446977,1721190640087,-500.0,0.00021917,2]
[332446978,1721190640095,-500.0,0.00021917,2]
[332446979,1721190640106,-500.0,0.00021917,2]
[332446980,1721190640116,-406.32016621,0.00021917,2]
[332446981,1721190640125,-500.0,0.00021917,2]
[332446982,1721190640135,-500.0,0.00021917,2]
[332446983,1721190640148,-500.0,0.00021917,2]
[332446984,1721190640157,-502.51666468,0.00021917,2]
[332446985,1721190640166,-500.0,0.00021917,2]
[332446986,1721190640175,-500.0,0.00021917,2]
[332446987,1721190640184,-500.0,0.00021917,2]
[332446988,1721190640194,-500.0,0.00021917,2]
[332446989,1721190640204,-500.0,0.00021917,2]
[332446990,1721190640213,-500.0,0.00021917,2]
[332446991,1721190640224,-500.0,0.00021917,2]
[332446992,1721190640234,-500.0,0.00021917,2]
[332446994,1721190640243,-506.23336491,0.00021917,2]
[332446995,1721190640252,-500.0,0.00021917,2]
[332446996,1721190640262,-479.0,0.00021917,2]
[332446997,1721190640277,-500.0,0.00021917,2]
[332446998,1721190640286,-648.77291229,0.00021917,2]
[332447000,1721190640296,-500.0,0.00021917,2]
[332447001,1721190640307,-500.0,0.00021917,2]
[332447002,1721190640316,-565.88,0.00021917,2]
[332447003,1721190640325,-574.22312024,0.00021917,2]
[332447004,1721190640335,-502.48328605,0.00021917,2]
[332447005,1721190640344,-502.16022237,0.00021917,2]
[332447007,1721190640356,-500.0,0.00021917,2]
[332447008,1721190640366,-500.0,0.00021917,2]
[332447009,1721190640375,-500.0,0.00021917,2]
[332447010,1721190640385,-500.0,0.00021917,2]
[332447011,1721190640395,-500.0,0.00021917,2]
[332447012,1721190640405,-500.0,0.00021917,2]
[332447013,1721190640414,-500.0,0.00021917,2]
[332447014,1721190640424,-500.0,0.00021917,2]
[332447015,1721190640433,-500.0,0.00021917,2]
[332447016,1721190640443,-542.51035399,0.00021917,2]
[332447017,1721190640452,-500.0,0.00021917,2]
[332447018,1721190640461,-179.6316391,0.00021917,2]
[332447020,1721190640471,-500.0,0.00021917,2]
[332447021,1721190640480,-500.0,0.00021917,2]
[332447023,1721190640489,-500.0,0.00021917,2]
[332447024,1721190640499,-500.0,0.00021917,2]
[332447026,1721190640508,-500.0,0.00021917,2]
[332447028,1721190640637,-500.0,0.00021917,2]
[332447029,1721190640647,-500.0,0.00021917,2]
[332447030,1721190640656,-500.0,0.00021917,2]
[332447031,1721190640665,-500.0,0.00021917,2]
[332447032,1721190640673,-500.0,0.00021917,2]
[332447033,1721190640682,-500.0,0.00021917,2]
[332447034,1721190640691,-500.0,0.00021917,2]
[332447035,1721190640701,-500.0,0.00021917,2]
[332447036,1721190640710,-500.0,0.00021917,2]
[332447037,1721190640720,-500.0,0.00021917,2]
[332447038,1721190640729,-500.0,0.00021917,2]
[332447039,1721190640738,-500.0,0.00021917,2]
[332447040,1721190640747,-500.0,0.00021917,2]
[332447041,1721190640756,-500.0,0.00021917,2]
[332447042,1721190640766,-500.0,0.00021917,2]
[332447043,1721190640775,-500.0,0.00021917,2]
[332447044,1721190640784,-500.0,0.00021917,2]
[332447045,1721190640793,-500.0,0.00021917,2]
[332447046,1721190640803,-500.0,0.00021917,2]
[332447047,1721190640812,-500.0,0.00021917,2]
[332447048,1721190640821,-500.0,0.00021917,2]
[332447049,1721190640830,-500.0,0.00021917,2]
[332447050,1721190640839,-500.0,0.00021917,2]
[332447051,1721190640848,-500.0,0.00021917,2]
[332447052,1721190640859,-500.0,0.00021917,2]
[332447053,1721190640868,-500.0,0.00021917,2]
[332447054,1721190640877,-536.62897288,0.00021917,2]
[332447055,1721190640886,-500.0,0.00021917,2]
[332447056,1721190640895,-239.07540967,0.00021917,2]
[332447057,1721190640905,-500.0,0.00021917,2]
[332447058,1721190640914,-500.0,0.00021917,2]
[332447059,1721190640925,-500.0,0.00021917,2]
[332447060,1721190640934,-505.20120875,0.00021917,2]
[332447061,1721190640943,-500.0,0.00021917,2]
[332447062,1721190640953,-500.0,0.00021917,2]
[332447063,1721190640962,-500.0,0.00021917,2]
[332447064,1721190640971,-500.0,0.00021917,2]
[332447065,1721190640981,-533.12223709,0.00021917,2]
[332447066,1721190640990,-509.01146436,0.00021917,2]
[332447067,1721190640999,-500.0,0.00021917,2]
[332447068,1721190641008,-545.55358474,0.00021917,2]
[332447069,1721190641018,-500.0,0.00021917,2]
[332447070,1721190641028,-194.61319414,0.00021917,2]
[332447071,1721190641037,-500.0,0.00021917,2]
[332447072,1721190641047,-502.6931602,0.00021917,2]
[332447073,1721190641056,-515.46089953,0.00021917,2]
[332447074,1721190641066,-500.0,0.00021917,2]
[332447075,1721190641075,-500.0,0.00021917,2]
[332447076,1721190641084,-500.0,0.00021917,2]
[332447077,1721190641094,-542.48542958,0.00021917,2]
[332447078,1721190641103,-502.91771472,0.00021917,2]
[332447079,1721190641113,-500.0,0.00021917,2]
[332447080,1721190641122,-500.0,0.00021917,2]
[332447081,1721190641132,-500.0,0.00021917,2]
[332447082,1721190641142,-500.0,0.00021917,2]
[332447083,1721190641151,-500.0,0.00021917,2]
[332447084,1721190641161,-500.0,0.00021917,2]
[332447085,1721190641170,-500.0,0.00021917,2]
[332447086,1721190641179,-500.0,0.00021917,2]
[332447087,1721190641188,-500.0,0.00021917,2]
[332447088,1721190641197,-500.0,0.00021917,2]
[332447089,1721190641207,-500.0,0.00021917,2]
[332447090,1721190641216,-500.0,0.00021917,2]
[332447091,1721190641226,-518.93945252,0.00021917,2]
[332447092,1721190641235,-500.0,0.00021917,2]
[332447093,1721190641244,-500.0,0.00021917,2]
[332447094,1721190641253,-500.0,0.00021917,2]
[332447095,1721190641263,-500.0,0.00021917,2]
[332447096,1721190641273,-500.0,0.00021917,2]